fUST/lending_fUST_20240821
["ID","MTS","AMOUNT","RATE_DAILY","PERIOD"]
[335447054,1724237446306,-1500.0,0.00027519,4]
[335447055,1724237446315,-331.33100696,0.00027581,2]
[335447056,1724237446325,-2000.0,0.00028624,4]
[335447057,1724237446334,-165.0,0.00028767,2]
[335447058,1724237446342,-331.33100696,0.00029045,2]
[335447059,1724237446351,-2500.0,0.00029889,4]
[335447060,1724237446361,-178.72751622,0.0003,5]
[335447061,1724237446370,-331.33100696,0.00030508,2]
[335447062,1724237446380,-3000.0,0.00031288,4]
[335447063,1724237446390,-285.3614456,0.00031747,3]
[335447064,1724237446399,-14603.23921473,0.00031971,4]
[335447065,1724237491355,273.37336231,0.0002031,120]
[335447067,1724237661376,1626.72769459,0.00013971,2]
[335447069,1724237688806,1672.17781827,0.00013971,2]
[335447070,1724237692532,228.38906886,0.00013971,2]
[335447071,1724237703196,979.68757975,0.00013971,2]
[335447072,1724237707146,259.51050466,0.00013971,2]
[335447073,1724237709491,938.91313571,0.00013971,2]
[335447074,1724237785204,510.41722905,0.00013971,2]
[335447075,1724237813777,1672.17781827,0.00013971,2]
[335447076,1724237858714,510.41722905,0.00013971,2]
[335447077,1724237924803,1408.83870255,0.00013971,2]
[335447078,1724237950179,510.41722905,0.00013971,2]
[335447080,1724238050227,510.41722905,0.00013971,2]
[335447081,1724238064206,510.41722905,0.00013971,2]
[335447082,1724238184292,510.41722905,0.00013971,2]
[335447083,1724238262217,1514.4,0.00016555,30]
[335447084,1724238282208,510.41722905,0.00013971,2]
[335447085,1724238396189,510.41722905,0.00013971,2]
[335447086,1724238411188,510.41722905,0.00013971,2]
[335447090,1724238514186,510.41722905,0.00013971,2]
[335447095,1724238565110,-324.899454,0.00014247,2]
[335447096,1724238565132,-31.73125072,0.00016834,2]
[335447097,1724238603312,510.41722905,0.00013971,2]
[335447199,1724238638289,-953.53947811,0.00016602,2]
[335447201,1724238638299,-165.86022108,0.00016834,2]
[335447202,1724238638308,-252.53484284,0.00016934,2]
[335447203,1724238638320,-279.48007373,0.00016934,2]
[335447204,1724238638330,-233.47033668,0.00016934,2]
[335447205,1724238638340,-30754.43342455,0.00016934,2]
[335447206,1724238638349,-309.4040431,0.00017,2]
[335447207,1724238638358,-300.0,0.00018127,2]
[335447208,1724238638368,-300.0,0.00018127,2]
[335447209,1724238638377,-9188.9505066,0.00018128,2]
[335447210,1724238638386,-500.0,0.00018622,2]
[335447211,1724238638395,-165.742226,0.00019178,2]
[335447212,1724238638405,-251.0,0.00019178,2]
[335447213,1724238638414,-197.59147179,0.00019205,2]
[335447214,1724238638424,-500.0,0.00019602,2]
[335447215,1724238638434,-420.0,0.00019776,2]
[335447216,1724238638443,-466.40903317,0.00019829,2]
[335447217,1724238638452,-420.0,0.0001994,2]
[335447218,1724238638462,-195.12871969,0.0002,2]
[335447219,1724238638471,-500.0,0.00020299,2]
[335447220,1724238638481,-500.0,0.00020299,2]
[335447221,1724238638491,-500.0,0.00020299,2]
[335447222,1724238638501,-500.0,0.00020299,2]
[335447224,1724238638510,-500.0,0.00020299,2]
[335447226,1724238638519,-392.7632691,0.00020299,2]
[335447228,1724238638528,-150.112233,0.000203,3]
[335447230,1724238638537,-43536.04298983,0.000203,2]
[335447232,1724238638634,-345.97394559,0.000203,2]
[335447233,1724238638645,-16632.39791301,0.000203,2]
[335447248,1724238640958,-50435.10008657,0.000203,2]
[335447249,1724238640968,-10513.28749774,0.0002031,2]
[335447250,1724238640977,-42178.78747164,0.0002031,2]
[335447261,1724238643645,-84334.53876546,0.0002031,2]
[335447262,1724238643655,-226.13158555,0.0002031,2]
[335447263,1724238643665,-1260.81854444,0.0002031,2]
[335447264,1724238643676,-287.17173053,0.0002031,2]
[335447265,1724238643686,-5013.51526517,0.0002031,2]
[335447266,1724238643696,-200.0,0.00020373,2]
[335447267,1724238643706,-601.11114273,0.00020373,2]
[335447268,1724238643716,-400.0,0.00020373,2]
[335447269,1724238643728,-600.0,0.00020373,2]
[335447270,1724238643738,-170.20336162,0.00020373,2]
[335447271,1724238643754,-500.0,0.00020634,2]
[335447272,1724238643764,-324.899454,0.00020707,2]
[335447273,1724238643774,-465.07045166,0.0002082,2]
[335447274,1724238643783,-479.10124227,0.00021071,2]
[335447275,1724238643793,-517.09929555,0.00021719,2]
[335447276,1724238643803,-500.0,0.00021719,2]
[335447277,1724238643812,-500.0,0.00021719,2]
[335447278,1724238643821,-500.0,0.00021719,2]
[335447279,1724238643830,-500.0,0.00021719,2]
[335447280,1724238643839,-500.0,0.00021719,2]
[335447281,1724238643849,-500.0,0.00021719,2]
[335447282,1724238643859,-500.0,0.0002172,2]
[335447283,1724238643868,-500.0,0.0002172,2]
[335447284,1724238643880,-150.112233,0.000218,4]
[335447285,1724238643891,-587.0,0.00021934,2]
[335447286,1724238643902,-302.57643837,0.00022,2]
[335447287,1724238643912,-302.60665372,0.00022,2]
[335447288,1724238643922,-302.57643837,0.0002222,2]
[335447289,1724238643935,-302.60665372,0.0002222,2]
[335447290,1724238643945,-302.57643837,0.0002244,2]
[335447291,1724238644063,-302.60665372,0.0002244,2]
[335447292,1724238644073,-302.57643837,0.0002266,2]
[335447294,1724238644082,-378.03286373,0.0002266,2]
[335447296,1724238644091,-500.0,0.00022805,2]
[335447297,1724238644100,-302.57643837,0.0002288,2]
[335447298,1724238644110,-453.86465756,0.000231,4]
[335447299,1724238644120,-150.112233,0.000232,4]
[335447300,1724238644129,-169.88266883,0.0002332,4]
[335447301,1724238644139,-500.0,0.00023946,2]
[335447302,1724238644149,-440.0,0.00024128,2]
[335447303,1724238644160,-1099.39349723,0.00024322,2]
[335447304,1724238644170,-782.718708,0.00024385,2]
[335447305,1724238644180,-10343.5134042,0.000246,2]
[335447306,1724238644189,-27737.3787337,0.00024646,3]
[335447307,1724238644199,-5491.48473916,0.00024647,2]
[335447308,1724238644208,-160.8404123,0.00024688,2]
[335447309,1724238644217,-882.99597685,0.00024688,2]
[335447310,1724238644227,-277.68803325,0.0002469,2]
[335447311,1724238644237,-150.112233,0.000247,2]
[335447312,1724238644250,-466.22591532,0.00025143,2]
[335447313,1724238644259,-25885.41076294,0.00025872,3]
[335447347,1724239257080,1509.0,0.00016555,30]
[335447348,1724239357466,3029.628,0.00014,2]
[335447349,1724239417198,263.53595892,0.00014,2]
[335447352,1724239570702,243.46997914,0.00014,2]
[335447353,1724239577762,356.75448895,0.00014,2]
[335447356,1724239692218,510.41722905,0.00014,2]
[335447357,1724239716993,4721.04600346,0.00014,2]
[335447358,1724239723024,154.94811209,0.00014,2]
[335447359,1724239738174,1672.17781827,0.00014,2]
[335447360,1724239741417,225.44791877,0.00014,2]
[335447361,1724239748112,-356.63070472,0.00014246,2]
[335447362,1724239748633,406.77446256,0.00014,2]
[335447370,1724239791924,574.51022931,0.00014,2]
[335447371,1724239793227,510.41722905,0.00014,2]
[335447430,1724239838923,-5548.21446759,0.00014246,2]
[335447431,1724239838933,-292.409508,0.00014247,2]
[335447432,1724239838942,-187.5,0.00015448,2]
[335447433,1724239838952,-187.5,0.00015491,2]
[335447434,1724239838961,-187.5,0.00015533,2]
[335447435,1724239838970,-187.5,0.00015575,2]
[335447436,1724239838980,-187.5,0.00015618,2]
[335447437,1724239838990,-187.5,0.0001566,2]
[335447438,1724239838999,-187.5,0.00015702,2]
[335447439,1724239839009,-187.5,0.00015745,2]
[335447440,1724239839020,-187.5,0.00015787,2]
[335447441,1724239839030,-187.5,0.0001583,2]
[335447442,1724239839039,-187.5,0.00015872,2]
[335447443,1724239839048,-187.5,0.00015914,2]
[335447444,1724239839058,-187.5,0.00015957,2]
[335447445,1724239839067,-187.5,0.00015999,2]
[335447446,1724239839077,-187.5,0.00016041,2]
[335447447,1724239839086,-187.5,0.00016084,2]
[335447448,1724239839096,-187.5,0.00016126,2]
[335447449,1724239839105,-187.5,0.00016168,2]
[335447450,1724239839114,-187.5,0.00016211,2]
[335447451,1724239839124,-187.5,0.00016253,2]
[335447452,1724239839134,-3000.0,0.000163,2]
[335447453,1724239839143,-3000.0,0.0001631,2]
[335447454,1724239839152,-3000.0,0.0001632,2]
[335447455,1724239839162,-3000.0,0.0001633,2]
[335447456,1724239839172,-3000.0,0.0001634,2]
[335447457,1724239839182,-4604.63372,0.0001635,2]
[335447458,1724239839192,-23128.5513063,0.00016383,2]
[335447459,1724239839201,-243.81669625,0.00016968,2]
[335447460,1724239839215,-1991.50485113,0.000176,2]
[335447461,1724239839225,-350.0,0.00018,2]
[335447462,1724239839236,-15958.96024021,0.00018447,2]
[335447463,1724239839245,-500.0,0.00019142,2]
[335447464,1724239839255,-251.0,0.00019178,2]
[335447465,1724239839265,-198.4686705,0.00019178,2]
[335447466,1724239839275,-500.0,0.00019197,2]
[335447467,1724239839285,-500.0,0.00019354,2]
[335447468,1724239839295,-465.00528251,0.00019833,2]
[335447469,1724239839304,-500.0,0.00019844,2]
[335447470,1724239839314,-1376.68634666,0.000199,2]
[335447471,1724239839324,-600.0,0.00019973,2]
[335447472,1724239839334,-600.0,0.00019973,2]
[335447473,1724239839343,-321.41814101,0.00019988,2]
[335447474,1724239839353,-500.0,0.00019988,2]
[335447475,1724239839363,-500.0,0.00019988,2]
[335447476,1724239839373,-500.0,0.00019988,2]
[335447477,1724239839382,-491.17327954,0.00019988,2]
[335447478,1724239839392,-500.0,0.00019988,2]
[335447479,1724239839401,-500.0,0.00019988,2]
[335447480,1724239839411,-361.96950689,0.00019989,2]
[335447481,1724239839421,-500.0,0.00019989,2]
[335447482,1724239839431,-500.0,0.00019989,2]
[335447483,1724239839440,-500.0,0.00019989,2]
[335447484,1724239839450,-500.0,0.00019989,2]
[335447485,1724239839459,-500.0,0.00019989,2]
[335447486,1724239839469,-500.0,0.00019989,2]
[335447487,1724239839478,-500.0,0.00019989,2]
[335447488,1724239839489,-19508.7635121,0.0001999,2]
[335447489,1724239839499,-286536.10212643,0.0001999,2]
[335447490,1724239839509,-5451.53496777,0.0002,2]
[335447491,1724239839519,-287.17173053,0.0002,2]
[335447492,1724239839528,-435.0,0.0002,2]
[335447493,1724239839538,-285.48087373,0.0002,2]
[335447494,1724239839548,-5327.81921818,0.0002,2]
[335447495,1724239839557,-4093.99724662,0.0002,2]
[335447496,1724239839566,-172.08510632,0.0002,2]
[335447497,1724239839576,-183.32510841,0.0002,2]
[335447498,1724239839586,-154.79103211,0.0002,2]
[335447499,1724239839595,-46446.06502871,0.0002,2]
[335447500,1724239839608,-6748.56177573,0.0002,2]
[335447501,1724239839618,-1714.85925717,0.0002,2]
[335447502,1724239839630,-10055.12489044,0.0002,2]
[335447503,1724239839641,-4291.56646056,0.0002,2]
[335447504,1724239839650,-157.06469624,0.0002,2]
[335447505,1724239839832,-500.0,0.00020168,2]
[335447506,1724239839842,-500.0,0.00020242,2]
[335447507,1724239839851,-500.0,0.00020278,2]
[335447508,1724239839861,-401.02347447,0.00020373,2]
[335447509,1724239839870,-201.28991957,0.00020373,2]
[335447510,1724239839880,-504.54855206,0.00020373,2]
[335447511,1724239839890,-500.0,0.00020373,2]
[335447512,1724239839900,-500.0,0.00020373,2]
[335447513,1724239839910,-500.0,0.00020373,2]
[335447514,1724239839920,-120106.70625485,0.00020377,2]
[335447524,1724239843528,-510.41722905,0.00016969,2]
[335447525,1724239843538,-26706.29374515,0.00020377,2]
[335447526,1724239843550,-500.0,0.00020395,2]
[335447527,1724239843560,-292.409508,0.00020707,2]
[335447528,1724239843571,-465.00026413,0.00020824,2]
[335447529,1724239843583,-190.0,0.00020873,2]
[335447530,1724239843594,-700.49678105,0.00020921,2]
[335447532,1724239843604,-1000.0,0.00020921,2]
[335447534,1724239843615,-500.7532893,0.00020921,2]
[335447536,1724239843626,-500.0,0.00020937,2]
[335447537,1724239843640,-500.0,0.00021196,2]
[335447538,1724239843653,-500.0,0.0002172,2]
[335447539,1724239843662,-500.0,0.00021776,2]
[335447540,1724239843674,-1411.59941463,0.00021819,2]
[335447541,1724239843684,-160.8404123,0.00022,2]
[335447542,1724239843694,-167.070384,0.0002204,2]
[335447543,1724239843704,-1376.68634663,0.0002209,2]
[335447544,1724239843716,-19508.7635121,0.0002216,3]
[335447545,1724239843727,-882.99597685,0.0002217,2]
[335447546,1724239843738,-1045.90304831,0.00022748,2]
[335447547,1724239843748,-500.0,0.00023058,2]
[335447548,1724239843757,-500.0,0.00023709,2]
[335447549,1724239843767,-168.983038,0.00023932,2]
[335447550,1724239843777,-500.0,0.00024119,2]
[335447551,1724239843786,-782.718708,0.00024184,2]
[335447552,1724239843795,-1376.68634663,0.00024281,2]
[335447553,1724239843804,-277.68803325,0.00024395,2]
[335447554,1724239843814,-500.0,0.00024548,2]
[335447555,1724239843823,-10343.5134042,0.00024637,2]
[335447556,1724239843833,-200.0,0.00024658,15]
[335447557,1724239843843,-500.0,0.00024658,2]
[335447558,1724239843852,-500.0,0.00024658,2]
[335447559,1724239843863,-500.0,0.00024658,2]
[335447560,1724239843873,-500.0,0.00024658,2]
[335447561,1724239843883,-500.0,0.00024658,2]
[335447562,1724239843895,-500.0,0.00024658,2]
[335447563,1724239843904,-500.0,0.00024658,2]
[335447564,1724239843914,-186.51993487,0.00024658,2]
[335447565,1724239843923,-500.0,0.00024658,2]
[335447566,1724239843935,-500.0,0.00024658,2]
[335447567,1724239843946,-500.0,0.00024658,2]
[335447568,1724239843958,-500.0,0.00024658,2]
[335447569,1724239843967,-500.0,0.00024754,2]
[335447570,1724239843977,-500.0,0.00024765,2]
[335447571,1724239843988,-247.98372407,0.00024875,2]
[335447572,1724239843998,-10000.0,0.00025,4]
[335447573,1724239844007,-154.79103211,0.00025,2]
[335447574,1724239844017,-259.064396,0.00025,120]
[335447575,1724239844027,-377.22675197,0.00025,2]
[335447576,1724239844036,-261.95722989,0.00025666,2]
[335447577,1724239844047,-2000.0,0.00025732,2]
[335447578,1724239844057,-240.34627062,0.0002582,2]
[335447579,1724239844067,-78035.0540485,0.00025862,3]
[335447580,1724239844077,-58526.2905364,0.00025862,3]
[335447581,1724239844087,-226.13158555,0.00025872,2]
[335447582,1724239844097,-10513.28749774,0.00025872,2]
[335447583,1724239844107,-126513.3262371,0.00025872,7]
[335447584,1724239844117,-1260.81854444,0.00025872,2]
[335447585,1724239844127,-151.0,0.00025872,7]
[335447586,1724239844136,-203.651654,0.00025872,7]
[335447587,1724239844158,-203.651654,0.00025872,7]
[335447588,1724239844177,-10000.0,0.00025872,7]
[335447589,1724239844195,-10000.0,0.00025872,7]
[335447590,1724239844217,-151.0,0.00025872,7]
[335447591,1724239844236,-10000.0,0.00025872,7]
[335447592,1724239844256,-10000.0,0.00025872,7]
[335447593,1724239844272,-400.0,0.00025873,2]
[335447594,1724239844290,-150.0,0.00025873,2]
[335447595,1724239844312,-315.7,0.000259,14]
[335447596,1724239844331,-184.98,0.000259,7]
[335447597,1724239844344,-153.0,0.00026265,2]
[335447598,1724239844364,-153.0,0.00026265,2]
[335447599,1724239844379,-153.0,0.00026265,2]
[335447600,1724239844398,-153.0,0.00026265,2]
[335447601,1724239844412,-153.0,0.00026265,2]
[335447602,1724239844430,-153.0,0.00026265,2]
[335447603,1724239844449,-153.0,0.00026265,2]
[335447604,1724239844466,-153.0,0.00026265,2]
[335447605,1724239844480,-153.0,0.00026265,2]
[335447606,1724239844496,-153.0,0.00026265,2]
[335447607,1724239844510,-153.0,0.00026265,2]
[335447608,1724239844526,-153.0,0.00026265,2]
[335447609,1724239844541,-153.0,0.00026265,2]
[335447610,1724239844557,-153.0,0.00026265,2]
[335447611,1724239844572,-153.0,0.00026265,2]
[335447612,1724239844588,-153.0,0.00026265,2]
[335447613,1724239844603,-153.0,0.00026265,2]
[335447614,1724239844620,-153.0,0.00026265,2]
[335447615,1724239844640,-153.0,0.00026265,2]
[335447616,1724239844656,-153.0,0.00026265,2]
[335447617,1724239844672,-153.0,0.00026265,2]
[335447618,1724239844686,-153.0,0.00026265,2]
[335447619,1724239844701,-153.0,0.00026265,2]
[335447620,1724239844721,-153.0,0.00026265,2]
[335447621,1724239844737,-153.0,0.00026265,2]
[335447622,1724239844753,-153.0,0.00026265,2]
[335447623,1724239844767,-153.0,0.00026265,2]
[335447624,1724239844784,-153.0,0.00026265,2]
[335447625,1724239844799,-153.0,0.00026265,2]
[335447626,1724239844814,-153.0,0.00026265,2]
[335447627,1724239844829,-153.0,0.00026265,2]
[335447628,1724239844844,-153.0,0.00026265,2]
[335447629,1724239844859,-153.0,0.00026265,2]
[335447630,1724239844874,-153.0,0.00026265,2]
[335447631,1724239844888,-153.0,0.00026265,2]
[335447632,1724239844903,-153.0,0.00026265,2]
[335447633,1724239844917,-153.0,0.00026265,2]
[335447634,1724239844932,-153.0,0.00026265,2]
[335447635,1724239844946,-153.0,0.00026265,2]
[335447636,1724239844960,-153.0,0.00026265,2]
[335447637,1724239844974,-153.0,0.00026265,2]
[335447638,1724239844993,-153.0,0.00026265,2]
[335447639,1724239845008,-153.0,0.00026265,2]
[335447640,1724239845022,-153.0,0.00026265,2]
[335447641,1724239845036,-500.0,0.00026303,2]
[335447642,1724239845050,-250.3411862,0.00026421,2]
[335447643,1724239845065,-1376.68634663,0.00026471,2]
[335447644,1724239845079,-500.0,0.00026493,2]
[335447645,1724239845093,-500.0,0.00026538,2]
[335447646,1724239845109,-500.0,0.00026586,2]
[335447647,1724239845123,-152.72,0.000266,31]
[335447648,1724239845137,-152.72,0.000266,31]
[335447649,1724239845152,-152.72,0.000266,31]
[335447650,1724239845178,-152.72,0.000266,31]
[335447651,1724239845204,-500.0,0.00026696,2]
[335447652,1724239845225,-500.0,0.00026711,2]
[335447653,1724239845245,-500.0,0.00026829,2]
[335447654,1724239845264,-500.0,0.00026909,2]
[335447655,1724239845281,-153.0,0.00026936,2]
[335447656,1724239845298,-153.0,0.00026936,2]
[335447657,1724239845315,-153.0,0.00026936,2]
[335447658,1724239845332,-153.0,0.00026936,2]
[335447659,1724239845347,-153.0,0.00026936,2]
[335447660,1724239845362,-153.0,0.00026936,2]
[335447661,1724239845377,-153.0,0.00026936,2]
[335447662,1724239845392,-153.0,0.00026936,2]
[335447663,1724239845409,-153.0,0.00026936,2]
[335447664,1724239845425,-153.0,0.00026936,2]
[335447665,1724239845440,-153.0,0.00026936,2]
[335447666,1724239845455,-174.0,0.00027,2]
[335447667,1724239845470,-292.409508,0.00027167,2]
[335447668,1724239845484,-151.0,0.00027397,7]
[335447669,1724239845498,-151.0,0.00027397,7]
[335447670,1724239845512,-10000.0,0.000275,7]
[335447671,1724239845734,-500.0,0.00027818,2]
[335447672,1724239845746,-500.0,0.00028183,2]
[335447673,1724239845757,-500.0,0.00028278,2]
[335447674,1724239845766,-152.72,0.000286,31]
[335447675,1724239845776,-152.72,0.000286,31]
[335447676,1724239845785,-152.72,0.000286,31]
[335447677,1724239845795,-152.72,0.000286,31]
[335447678,1724239845806,-152.72,0.000286,31]
[335447679,1724239845816,-152.72,0.000286,31]
[335447680,1724239845826,-152.72,0.000286,31]
[335447681,1724239845836,-152.72,0.000286,31]
[335447682,1724239845846,-150.112233,0.000286,7]
[335447683,1724239845855,-500.0,0.00028642,2]
[335447684,1724239845865,-1376.68634663,0.00028661,2]
[335447685,1724239845875,-500.0,0.00028685,2]
[335447686,1724239845884,-315.7,0.000287,14]
[335447687,1724239845893,-184.98,0.000287,7]
[335447689,1724239845902,-151.0,0.0002875,7]
[335447691,1724239845912,-39017.5270243,0.00028751,3]
[335447692,1724239845922,-60283.7664118,0.00028761,3]
[335447693,1724239845931,-500.0,0.00029308,2]
[335447694,1724239845941,-150.112233,0.000295,8]
[335447695,1724239845950,-500.0,0.00029608,2]
[335447696,1724239845960,-19508.7635121,0.0002989,3]
[335447697,1724239845969,-1535154.19370579,0.000299,2]
[335447698,1724239845978,-315.57701,0.000299,7]
[335447699,1724239845988,-315.57701,0.000299,7]
[335447700,1724239845997,-1766.210425,0.000299,7]
[335447701,1724239846006,-1766.210425,0.000299,7]
[335447702,1724239846017,-1744.287879,0.000299,7]
[335447703,1724239846026,-1744.287879,0.000299,7]
[335447704,1724239846036,-151.0,0.000299,7]
[335447705,1724239846045,-151.0,0.000299,7]
[335447706,1724239846055,-151.0,0.000299,7]
[335447707,1724239846064,-151.0,0.000299,7]
[335447708,1724239846076,-151.0,0.000299,7]
[335447709,1724239846087,-203.651654,0.000299,7]
[335447710,1724239846100,-203.651654,0.000299,7]
[335447711,1724239846110,-151.0,0.000299,7]
[335447712,1724239846121,-10000.0,0.000299,7]
[335447713,1724239846130,-151.0,0.000299,7]
[335447714,1724239846139,-10000.0,0.000299,7]
[335447715,1724239846149,-159.190425,0.000299,7]
[335447716,1724239846158,-10000.0,0.000299,7]
[335447717,1724239846167,-151.0,0.000299,7]
[335447718,1724239846176,-10000.0,0.000299,7]
[335447719,1724239846185,-151.0,0.0002998,7]
[335447720,1724239846195,-151.0,0.0002998,7]
[335447721,1724239846204,-151.0,0.0002998,7]
[335447722,1724239846214,-151.0,0.0002998,7]
[335447723,1724239846223,-500.0,0.00029986,2]
[335447724,1724239846233,-26900.0,0.0003,2]
[335447725,1724239846243,-178.72751622,0.0003,5]
[335447726,1724239846252,-285.3614456,0.0003,3]
[335447727,1724239846262,-167.0,0.0003,2]
[335447728,1724239846271,-10000.0,0.0003,10]
[335447729,1724239846280,-437.443624,0.0003,7]
[335447730,1724239846290,-437.443624,0.0003,7]
[335447731,1724239846299,-424.104975,0.0003,7]
[335447732,1724239846308,-424.104975,0.0003,7]
[335447733,1724239846318,-504.34442286,0.0003,2]
[335447734,1724239846327,-500.0,0.00030086,7]
[335447735,1724239846336,-504.34442289,0.000303,2]
[335447736,1724239846346,-150.112233,0.000304,10]
[335447737,1724239846355,-500.0,0.00030453,7]
[335447738,1724239846366,-150.112241,0.000305,7]
[335447739,1724239846376,-500.0,0.00030503,7]
[335447740,1724239846385,-500.0,0.00030634,7]
[335447741,1724239846394,-152.72,0.000307,31]
[335447742,1724239846403,-152.72,0.000307,31]
[335447743,1724239846413,-152.72,0.000307,31]
[335447744,1724239846422,-152.72,0.000307,31]
[335447745,1724239846431,-152.72,0.000307,31]
[335447746,1724239846441,-152.72,0.000307,31]
[335447747,1724239846450,-152.72,0.000307,31]
[335447748,1724239846460,-152.72,0.000307,31]
[335447749,1724239846471,-500.0,0.00030895,7]
[335447750,1724239846482,-500.0,0.00031049,7]
[335447751,1724239846493,-500.0,0.00031088,7]
[335447752,1724239846506,-315.7,0.000312,14]
[335447753,1724239846517,-184.98,0.000312,7]
[335447754,1724239846527,-150.112233,0.000313,8]
[335447755,1724239846536,-151.0,0.00031349,7]
[335447756,1724239846546,-151.0,0.00031349,7]
[335447757,1724239846555,-151.0,0.00031349,7]
[335447758,1724239846565,-151.0,0.00031349,7]
[335447759,1724239846574,-150.0,0.00031732,2]
[335447760,1724239846583,-521.0,0.00031732,2]
[335447761,1724239846593,-7727.0,0.00031732,2]
[335447762,1724239846606,-1415.0,0.00031732,2]
[335447763,1724239846617,-151.0,0.00031732,7]
[335447764,1724239846627,-150.112233,0.00032,5]
[335447765,1724239846641,-500.0,0.00032133,7]
[335447766,1724239846651,-500.0,0.00032155,7]
[335447767,1724239846661,-500.0,0.00032157,7]
[335447768,1724239846671,-150.112233,0.000322,10]
[335447769,1724239846680,-150.0,0.00032348,2]
[335447770,1724239846691,-150.0,0.00032349,2]
[335447771,1724239846700,-500.0,0.00032382,7]
[335447772,1724239846711,-152.72,0.000327,31]
[335447773,1724239846721,-152.72,0.000327,31]
[335447774,1724239846730,-152.72,0.000327,31]
[335447775,1724239846741,-152.72,0.000327,31]
[335447776,1724239846750,-152.72,0.000327,31]
[335447777,1724239846760,-152.72,0.000327,31]
[335447778,1724239846769,-152.72,0.000327,31]
[335447779,1724239846778,-152.72,0.000327,31]
[335447780,1724239846788,-500.0,0.000327,7]
[335447781,1724239846798,-166.124,0.0003271,2]
[335447782,1724239846809,-150.0,0.0003271,2]
[335447783,1724239846818,-245.769,0.0003271,2]
[335447784,1724239846828,-150.0,0.0003271,2]
[335447785,1724239846837,-150.63,0.0003271,2]
[335447786,1724239846847,-150.0,0.0003271,2]
[335447787,1724239846857,-1007.071724,0.000328,16]
[335447788,1724239846866,-28804.74,0.00032876,21]
[335447789,1724239846875,-437.443624,0.000329,7]
[335447790,1724239846885,-437.443624,0.000329,7]
[335447791,1724239846895,-424.104975,0.000329,7]
[335447792,1724239846904,-424.104975,0.000329,7]
[335447793,1724239846913,-151.0,0.000329,7]
[335447794,1724239846923,-151.0,0.000329,7]
[335447795,1724239846932,-151.0,0.000329,7]
[335447796,1724239846942,-151.0,0.000329,7]
[335447797,1724239846951,-151.0,0.000329,7]
[335447798,1724239846961,-151.0,0.000329,7]
[335447799,1724239846970,-151.0,0.000329,7]
[335447800,1724239846979,-151.0,0.000329,7]
[335447801,1724239846990,-151.0,0.000329,7]
[335447802,1724239846999,-151.0,0.000329,7]
[335447803,1724239847009,-151.0,0.000329,7]
[335447804,1724239847018,-435.007851,0.000329,7]
[335447805,1724239847028,-435.007851,0.000329,7]
[335447806,1724239847037,-151.0,0.000329,7]
[335447807,1724239847046,-340.3709,0.000329,7]
[335447808,1724239847056,-340.3709,0.000329,7]
[335447809,1724239847065,-151.216934,0.000329,7]
[335447810,1724239847074,-151.0,0.000329,7]
[335447811,1724239847084,-136117.52,0.000329,14]
[335447812,1724239847093,-711.889691,0.000329,7]